fUST/lending_fUST_20260101
["ID","MTS","AMOUNT","RATE_DAILY","PERIOD"]
[400237270,1767210651946,-160.0,0.00035834,18]
[400237271,1767210651955,-1478.63,0.00035838,60]
[400237272,1767210651964,-800.0,0.00035864,7]
[400237273,1767210651973,-800.0,0.00035867,7]
[400237274,1767210651983,-800.0,0.00035888,7]
[400237275,1767210651991,-956.2,0.0003589,39]
[400237276,1767210652001,-207.0,0.0003589,30]
[400237277,1767210652010,-3877.62234439,0.000359,15]
[400237278,1767210652020,-600.0,0.00035906,2]
[400237279,1767210652029,-2014.76529517,0.00035906,2]
[400237280,1767210652038,-1634.65241475,0.00035906,2]
[400237281,1767210652047,-169.32246815,0.00035918,30]
[400237282,1767210652057,-1478.63,0.00035938,60]
[400237283,1767210652070,-726.0,0.0003597,11]
[400237284,1767210652080,-207.0,0.00036,30]
[400237285,1767210652089,-2014.76529517,0.00036006,2]
[400237286,1767210652098,-1634.65241475,0.00036006,2]
[400237287,1767210652108,-726.0,0.00036035,11]
[400237288,1767210652117,-1478.63,0.00036038,60]
[400237289,1767210652127,-726.0,0.00036057,11]
[400237290,1767210652136,-153.0,0.00036104,30]
[400237291,1767210652145,-153.0,0.00036104,30]
[400237292,1767210652155,-153.0,0.00036104,30]
[400237293,1767210652165,-153.0,0.00036104,30]
[400237294,1767210652175,-307.6016492,0.00036104,30]
[400237295,1767210652184,-1634.65241475,0.00036106,2]
[400237296,1767210652193,-7606.29489299,0.00036124,2]
[400237297,1767210652203,-800.0,0.00036134,7]
[400237298,1767210652212,-1478.63,0.00036138,60]
[400237299,1767210652221,-651.10848757,0.00036164,5]
[400237300,1767210652231,-1634.65241475,0.00036206,2]
[400237301,1767210652245,-177.0,0.00036219,86]
[400237302,1767210652255,-1478.63,0.00036238,60]
[400237303,1767210652265,-500.0,0.0003625,30]
[400237304,1767210652274,-500.0,0.0003625,30]
[400237305,1767210652283,-500.0,0.0003625,30]
[400237306,1767210652293,-500.0,0.0003625,30]
[400237307,1767210652304,-603.09510429,0.0003625,30]
[400237308,1767210652313,-500.0,0.0003625,30]
[400237309,1767210652323,-600.0,0.0003628,2]
[400237310,1767210652333,-952.02947835,0.00036299,120]
[400237311,1767210652342,-1500.625286,0.000363,24]
[400237312,1767210652352,-169.32246815,0.00036301,30]
[400237313,1767210652361,-1478.63,0.00036338,60]
[400237314,1767210652370,-726.0,0.00036355,11]
[400237315,1767210652380,-160.0,0.00036357,19]
[400237316,1767210652390,-5000.0,0.00036371,3]
[400237317,1767210652399,-800.0,0.00036374,7]
[400237318,1767210652413,-153.0,0.00036384,30]
[400237319,1767210652428,-153.0,0.00036384,30]
[400237320,1767210652437,-153.0,0.00036384,30]
[400237321,1767210652447,-153.0,0.00036384,30]
[400237322,1767210652457,-153.0,0.00036384,30]
[400237323,1767210652466,-153.0,0.00036384,30]
[400237324,1767210652475,-153.0,0.00036384,30]
[400237325,1767210652484,-153.0,0.00036384,30]
[400237326,1767210652493,-153.0,0.00036384,30]
[400237327,1767210652502,-153.0,0.00036384,30]
[400237328,1767210652511,-153.0,0.00036384,30]
[400237329,1767210652520,-153.0,0.00036384,30]
[400237330,1767210652529,-151.0,0.00036384,31]
[400237331,1767210652539,-151.0,0.00036384,31]
[400237332,1767210652548,-151.0,0.00036384,31]
[400237333,1767210652557,-500.0,0.0003639,30]
[400237334,1767210652567,-500.0,0.0003639,30]
[400237335,1767210652576,-500.0,0.0003639,30]
[400237336,1767210652585,-500.0,0.0003639,30]
[400237337,1767210652595,-500.0,0.0003639,30]
[400237338,1767210652604,-500.0,0.0003639,30]
[400237339,1767210652614,-500.0,0.0003639,30]
[400237340,1767210652623,-500.0,0.0003639,30]
[400237341,1767210652633,-500.0,0.0003639,30]
[400237342,1767210652642,-500.0,0.0003639,30]
[400237343,1767210652651,-500.0,0.0003639,30]
[400237344,1767210652660,-200.54705607,0.00036432,29]
[400237345,1767210652670,-956.2,0.00036438,40]
[400237346,1767210652680,-1478.63,0.00036438,60]
[400237347,1767210652690,-308663.36,0.00036438,5]
[400237348,1767210652699,-500.0,0.0003644,30]
[400237349,1767210652708,-168.73233811,0.00036493,7]
[400237350,1767210652717,-155.15468496,0.000365,120]
[400237351,1767210652726,-376.3998898,0.00036515,30]
[400237352,1767210652737,-376.3998898,0.00036515,30]
[400237353,1767210652756,-376.3998898,0.00036515,30]
[400237354,1767210652765,-376.3998898,0.00036515,30]
[400237355,1767210652775,-376.3998898,0.00036515,30]
[400237356,1767210652785,-376.3998898,0.00036515,30]
[400237357,1767210652794,-376.3998898,0.00036515,30]
[400237358,1767210652889,-376.3998898,0.00036515,30]
[400237359,1767210652907,-372.9503929,0.00036515,30]
[400237360,1767210652916,-376.3998898,0.00036515,30]
[400237361,1767210652925,-376.3998898,0.00036515,30]
[400237362,1767210652935,-376.3998898,0.00036515,30]
[400237363,1767210652944,-376.3998898,0.00036515,30]
[400237364,1767210652953,-376.3998898,0.00036515,30]
[400237365,1767210652962,-376.3998898,0.00036515,30]
[400237366,1767210652971,-376.3998898,0.00036515,30]
[400237367,1767210652981,-376.3998898,0.00036515,30]
[400237368,1767210652990,-376.3998898,0.00036515,30]
[400237369,1767210652999,-376.3998898,0.00036515,30]
[400237370,1767210653009,-376.3998898,0.00036515,30]
[400237371,1767210653019,-376.3998898,0.00036515,30]
[400237372,1767210653028,-376.3998898,0.00036515,30]
[400237373,1767210653038,-376.3998898,0.00036515,30]
[400237374,1767210653048,-376.3998898,0.00036515,30]
[400237375,1767210653057,-376.3998898,0.00036515,30]
[400237376,1767210653069,-376.3998898,0.00036515,30]
[400237377,1767210653079,-7073.29,0.00036538,5]
[400237378,1767210653089,-1478.63,0.00036538,60]
[400237379,1767210653099,-160.0,0.0003657,11]
[400237380,1767210653109,-1478.63,0.00036638,60]
[400237381,1767210653119,-151.0,0.0003665,31]
[400237382,1767210653129,-151.0,0.0003665,31]
[400237383,1767210653139,-151.0,0.0003665,31]
[400237384,1767210653149,-151.0,0.0003665,31]
[400237385,1767210653158,-151.0,0.0003665,31]
[400237386,1767210653167,-151.0,0.0003665,31]
[400237387,1767210653177,-151.0,0.0003665,31]
[400237388,1767210653187,-151.0,0.0003665,31]
[400237389,1767210653197,-151.0,0.0003665,31]
[400237390,1767210653206,-151.0,0.0003665,31]
[400237391,1767210653216,-151.0,0.0003665,31]
[400237392,1767210653226,-600.0,0.00036654,2]
[400237393,1767210653239,-169.32246815,0.00036658,30]
[400237394,1767210653250,-874.0,0.00036675,11]
[400237395,1767210653260,-726.0,0.0003669,11]
[400237396,1767210653270,-726.0,0.00036719,11]
[400237397,1767210653279,-1478.63,0.00036738,60]
[400237398,1767210653289,-870.77529542,0.0003679,7]
[400237399,1767210653298,-1500.0,0.000368,24]
[400237400,1767210653308,-1478.63,0.00036838,60]
[400237401,1767210653319,-151.0,0.0003685,31]
[400237402,1767210653329,-151.0,0.0003685,31]
[400237403,1767210653339,-151.0,0.0003685,31]
[400237404,1767210653349,-151.0,0.0003685,31]
[400237405,1767210653358,-151.0,0.0003685,31]
[400237406,1767210653368,-151.0,0.0003685,31]
[400237407,1767210653378,-151.0,0.0003685,31]
[400237408,1767210653388,-151.0,0.0003685,31]
[400237409,1767210653398,-151.0,0.0003685,31]
[400237410,1767210653408,-151.0,0.0003685,31]
[400237411,1767210653418,-151.0,0.0003685,31]
[400237412,1767210653427,-151.0,0.0003685,31]
[400237413,1767210653437,-158.892051,0.0003685,31]
[400237414,1767210653447,-151.0,0.0003685,31]
[400237415,1767210653456,-158.892051,0.0003685,31]
[400237416,1767210653466,-158.892051,0.0003685,31]
[400237417,1767210653477,-158.892051,0.0003685,31]
[400237418,1767210653486,-151.0,0.0003685,31]
[400237419,1767210653495,-151.0,0.0003685,31]
[400237420,1767210653505,-151.0,0.0003685,31]
[400237421,1767210653514,-185.00562,0.0003685,31]
[400237422,1767210653524,-805.861522,0.0003685,31]
[400237423,1767210653533,-805.861522,0.0003685,31]
[400237424,1767210653543,-151.0,0.0003685,31]
[400237425,1767210653552,-805.861522,0.0003685,31]
[400237426,1767210653563,-151.0,0.0003685,31]
[400237427,1767210653573,-805.861522,0.0003685,31]
[400237428,1767210653583,-151.0,0.0003685,31]
[400237429,1767210653592,-1684.038653,0.0003685,31]
[400237430,1767210653602,-151.0,0.0003685,31]
[400237431,1767210653613,-1684.038653,0.0003685,31]
[400237432,1767210653622,-1684.038653,0.0003685,31]
[400237433,1767210653632,-151.0,0.0003685,31]
[400237434,1767210653642,-1684.038653,0.0003685,31]
[400237435,1767210653651,-242.224845,0.0003685,31]
[400237436,1767210653662,-242.224845,0.0003685,31]
[400237437,1767210653672,-242.224845,0.0003685,31]
[400237438,1767210653681,-242.224845,0.0003685,31]
[400237439,1767210653691,-1559.059603,0.0003685,31]
[400237440,1767210653701,-1559.059603,0.0003685,31]
[400237441,1767210653710,-1559.059603,0.0003685,31]
[400237442,1767210653720,-1559.059603,0.0003685,31]
[400237443,1767210653730,-230.54366,0.0003685,31]
[400237444,1767210653740,-230.54366,0.0003685,31]
[400237445,1767210653749,-230.54366,0.0003685,31]
[400237446,1767210653759,-230.54366,0.0003685,31]
[400237447,1767210653769,-913.677244,0.0003685,31]
[400237448,1767210653779,-913.677244,0.0003685,31]
[400237449,1767210653788,-913.677244,0.0003685,31]
[400237450,1767210653797,-151.0,0.0003685,31]
[400237451,1767210653806,-913.677244,0.0003685,31]
[400237452,1767210653815,-151.0,0.0003685,31]
[400237453,1767210653825,-151.0,0.0003685,31]
[400237454,1767210653834,-151.0,0.0003685,31]
[400237455,1767210653843,-151.743207,0.0003685,31]
[400237456,1767210653852,-151.0,0.0003685,7]
[400237457,1767210653862,-151.0,0.0003685,7]
[400237458,1767210653872,-151.0,0.0003685,28]
[400237459,1767210653881,-151.0,0.0003685,7]
[400237460,1767210653890,-151.0,0.0003685,31]
[400237461,1767210653900,-151.0,0.0003685,31]
[400237462,1767210653909,-193.357014,0.0003685,31]
[400237463,1767210653919,-193.357014,0.0003685,31]
[400237464,1767210653929,-193.357014,0.0003685,31]
[400237465,1767210653938,-193.357014,0.0003685,31]
[400237466,1767210653948,-151.0,0.0003685,31]
[400237467,1767210653957,-297.109657,0.0003685,31]
[400237468,1767210653967,-160.0,0.0003688,20]
[400237469,1767210653976,-800.0,0.00036912,7]
[400237470,1767210653986,-180543.91656176,0.00036917,17]
[400237471,1767210653995,-1357.36960251,0.0003693,7]
[400237472,1767210654004,-1478.63,0.00036938,60]
[400237473,1767210654014,-151.0,0.0003695,31]
[400237474,1767210654023,-151.0,0.0003695,31]
[400237475,1767210654032,-151.0,0.0003695,31]
[400237476,1767210654042,-151.0,0.0003695,31]
[400237477,1767210654051,-151.0,0.0003695,31]
[400237478,1767210654060,-151.0,0.0003695,31]
[400237479,1767210654071,-151.0,0.0003695,31]
[400237480,1767210654081,-195.765928,0.0003695,31]
[400237481,1767210654091,-151.0,0.0003695,31]
[400237482,1767210654100,-151.0,0.0003695,31]
[400237483,1767210654110,-151.0,0.0003695,31]
[400237484,1767210654119,-151.0,0.0003695,31]
[400237485,1767210654128,-151.0,0.0003695,31]
[400237486,1767210654138,-151.0,0.0003695,31]
[400237487,1767210654147,-151.0,0.0003695,31]
[400237488,1767210654157,-1592.861267,0.0003695,31]
[400237489,1767210654166,-151.0,0.0003695,31]
[400237490,1767210654176,-151.0,0.0003695,31]
[400237491,1767210654185,-1592.861267,0.0003695,31]
[400237492,1767210654195,-151.0,0.0003695,31]
[400237493,1767210654205,-1592.861267,0.0003695,31]
[400237494,1767210654214,-1592.861267,0.0003695,31]
[400237495,1767210654224,-203.384799,0.0003695,31]
[400237496,1767210654237,-203.384799,0.0003695,31]
[400237497,1767210654247,-203.384799,0.0003695,31]
[400237498,1767210654257,-203.384799,0.0003695,31]
[400237499,1767210654266,-992.843474,0.0003695,31]
[400237500,1767210654275,-992.843474,0.0003695,31]
[400237501,1767210654285,-992.843474,0.0003695,31]
[400237502,1767210654295,-992.843474,0.0003695,31]
[400237503,1767210654305,-151.0,0.0003695,31]
[400237504,1767210654315,-151.0,0.0003695,31]
[400237505,1767210654325,-151.0,0.0003695,31]
[400237506,1767210654335,-151.0,0.0003695,31]
[400237507,1767210654344,-161.294785,0.0003695,31]
[400237508,1767210654353,-161.294785,0.0003695,31]
[400237509,1767210654362,-161.294785,0.0003695,31]
[400237510,1767210654372,-161.294785,0.0003695,31]
[400237511,1767210654381,-151.0,0.0003695,31]
[400237512,1767210654391,-151.0,0.0003695,31]
[400237513,1767210654400,-151.0,0.0003695,31]
[400237514,1767210654409,-151.0,0.0003695,31]
[400237515,1767210654418,-300.857289,0.0003695,31]
[400237516,1767210654427,-300.857289,0.0003695,31]
[400237517,1767210654437,-356.714676,0.0003695,31]
[400237518,1767210654447,-300.857289,0.0003695,31]
[400237519,1767210654456,-356.714676,0.0003695,31]
[400237520,1767210654465,-300.857289,0.0003695,31]
[400237521,1767210654474,-356.714676,0.0003695,31]
[400237522,1767210654484,-356.714676,0.0003695,31]
[400237523,1767210654494,-322.09978,0.0003695,31]
[400237524,1767210654503,-322.09978,0.0003695,31]
[400237525,1767210654513,-322.09978,0.0003695,31]
[400237526,1767210654523,-322.09978,0.0003695,31]
[400237527,1767210654532,-1040.629164,0.0003695,31]
[400237528,1767210654542,-1040.629164,0.0003695,31]
[400237529,1767210654551,-1040.629164,0.0003695,31]
[400237530,1767210654561,-550.492601,0.0003695,31]
[400237531,1767210654571,-1040.629164,0.0003695,31]
[400237532,1767210654580,-550.492601,0.0003695,31]
[400237533,1767210654590,-550.492601,0.0003695,31]
[400237534,1767210654599,-550.492601,0.0003695,31]
[400237535,1767210654608,-151.0,0.0003695,31]
[400237536,1767210654618,-354.430528,0.0003695,31]
[400237537,1767210654628,-354.430528,0.0003695,31]
[400237538,1767210654638,-354.430528,0.0003695,31]
[400237539,1767210654647,-354.430528,0.0003695,31]
[400237540,1767210654656,-154.738358,0.0003695,31]
[400237541,1767210654666,-300.34133,0.0003695,31]
[400237542,1767210654675,-396.831655,0.0003695,31]
[400237543,1767210654684,-396.831655,0.0003695,31]
[400237544,1767210654694,-396.831655,0.0003695,31]
[400237545,1767210654703,-396.831655,0.0003695,31]
[400237546,1767210654712,-151.000017,0.0003695,31]
[400237547,1767210654722,-151.0,0.0003695,31]
[400237548,1767210654731,-151.0,0.0003695,31]
[400237549,1767210654740,-612.575308,0.0003695,31]
[400237550,1767210654749,-151.0,0.0003695,31]
[400237551,1767210654759,-612.575308,0.0003695,31]
[400237552,1767210654768,-612.575308,0.0003695,31]
[400237553,1767210654777,-612.575308,0.0003695,31]
[400237554,1767210654786,-151.0,0.0003695,31]
[400237555,1767210654795,-151.0,0.0003695,31]
[400237556,1767210654804,-151.0,0.0003695,31]
[400237557,1767210654813,-177.291107,0.0003695,7]
[400237558,1767210654899,-442.954982,0.0003695,31]
[400237559,1767210654917,-360.395551,0.0003695,31]
[400237560,1767210654929,-278.004127,0.0003695,31]
[400237561,1767210654938,-442.954982,0.0003695,31]
[400237562,1767210654948,-360.395551,0.0003695,31]
[400237563,1767210654958,-278.004127,0.0003695,31]
[400237564,1767210654967,-442.954982,0.0003695,31]
[400237565,1767210654976,-360.395551,0.0003695,31]
[400237566,1767210654986,-278.004127,0.0003695,31]
[400237567,1767210654995,-442.954982,0.0003695,31]
[400237568,1767210655005,-360.395551,0.0003695,31]
[400237569,1767210655016,-278.004127,0.0003695,31]
[400237570,1767210655026,-151.0,0.0003695,31]
[400237571,1767210655035,-177.644782,0.0003695,31]
[400237572,1767210655045,-151.0,0.0003695,31]
[400237573,1767210655055,-151.0,0.0003695,31]
[400237574,1767210655065,-151.0,0.0003695,31]
[400237575,1767210655075,-300.511634,0.0003695,31]
[400237576,1767210655084,-394.521351,0.0003695,31]
[400237577,1767210655094,-429.596572,0.0003695,31]
[400237578,1767210655105,-394.521351,0.0003695,31]
[400237579,1767210655115,-429.596572,0.0003695,31]
[400237580,1767210655125,-394.521351,0.0003695,31]
[400237581,1767210655136,-429.596572,0.0003695,31]
[400237582,1767210655146,-394.521351,0.0003695,31]
[400237583,1767210655157,-429.596572,0.0003695,31]
[400237584,1767210655167,-151.0,0.0003695,31]
[400237585,1767210655177,-151.0,0.0003695,31]
[400237586,1767210655188,-151.0,0.0003695,31]
[400237587,1767210655197,-151.0,0.0003695,31]
[400237588,1767210655207,-863.760546,0.0003695,31]
[400237589,1767210655217,-863.760546,0.0003695,31]
[400237590,1767210655227,-863.760546,0.0003695,31]
[400237591,1767210655239,-863.760546,0.0003695,31]
[400237592,1767210655249,-194605.26692343,0.0003695,7]
[400237593,1767210655422,-97.57083497,0.0003695,7]
[400237594,1767210655434,-517.42876019,0.0003695,7]
[400237595,1767210655445,-356.01301693,0.0003695,7]
[400237596,1767210655532,-263.47373267,0.0002199,2]
[400237597,1767210655547,-968.55100081,0.0002199,2]
[400237598,1767210655559,-672.86509108,0.0002199,2]
[400237599,1767210655571,-272.71,0.0002199,2]
[400237600,1767210655583,-48798.759642,0.0002199,2]
[400237601,1767210655594,-11912.80655445,0.0002199,2]
[400237602,1767210655775,-304.75105597,0.00014143,2]
[400237603,1767210655785,-73.19987449,0.00015121,2]
[400237604,1767210655797,-231.55118148,0.00015121,2]
[400237605,1767210655807,-305.05580703,0.000161,2]
[400237606,1767210655818,-1515.06325721,0.0002199,2]
[400237607,1767210655876,-35595.77072178,0.0002199,2]
[400237608,1767210655886,-150.0,0.00024658,2]
[400237609,1767210655895,-2000.0,0.00027743,7]
[400237610,1767210655905,-264.432816,0.00028289,7]
[400237611,1767210655914,-158.5161,0.00028289,7]
[400237612,1767210655924,-264.432816,0.00028289,7]
[400237613,1767210655934,-158.5161,0.00028289,7]
[400237614,1767210655943,-264.432816,0.00028289,7]
[400237615,1767210655953,-158.5161,0.00028289,7]
[400237616,1767210655964,-264.432816,0.00028289,7]
[400237617,1767210655974,-158.5161,0.00028289,7]
[400237618,1767210655984,-250.0,0.00028297,3]
[400237619,1767210655994,-250.0,0.00028297,3]
[400237620,1767210656004,-250.0,0.00028297,3]
[400237621,1767210656014,-250.0,0.00028297,3]
[400237622,1767210656023,-250.0,0.00028297,3]
[400237623,1767210656033,-250.0,0.00028297,3]
[400237624,1767210656043,-246.84985962,0.00028297,3]
[400237625,1767210656052,-264.432816,0.00033019,31]
[400237626,1767210656063,-158.5161,0.00033019,31]
[400237627,1767210656073,-264.432816,0.00033019,31]
[400237628,1767210656083,-158.5161,0.00033019,31]
[400237629,1767210656093,-264.432816,0.00033019,31]
[400237630,1767210656103,-158.5161,0.00033019,31]
[400237631,1767210656112,-264.432816,0.00033019,31]
[400237632,1767210656122,-158.5161,0.00033019,31]
[400237633,1767210656132,-376.3998898,0.00035556,30]
[400237634,1767210656142,-202.21692804,0.00036117,8]
[400237635,1767210656151,-264.432816,0.0003695,31]
[400237636,1767210656161,-158.5161,0.0003695,31]
[400237637,1767210656170,-264.432816,0.0003695,31]
[400237638,1767210656180,-158.5161,0.0003695,31]
[400237639,1767210656190,-264.432816,0.0003695,31]
[400237640,1767210656201,-158.5161,0.0003695,31]
[400237641,1767210656211,-264.432816,0.0003695,31]
[400237642,1767210656221,-158.5161,0.0003695,31]
[400237643,1767210656230,-131083.24527436,0.0003695,7]
[400237644,1767210656244,-726.0,0.00036961,11]
[400237645,1767210656253,-726.0,0.00036978,11]
[400237646,1767210656263,-151.0,0.00036978,31]
[400237647,1767210656273,-151.0,0.00036978,31]
[400237648,1767210656282,-234.699032,0.00036978,31]
[400237649,1767210656291,-151.0,0.00036978,31]
[400237650,1767210656301,-151.0,0.00036978,31]
[400237651,1767210656310,-151.0,0.00036978,31]
[400237652,1767210656320,-151.0,0.00036978,31]
[400237653,1767210656329,-151.0,0.00036978,31]
[400237654,1767210656338,-151.0,0.00036978,31]
[400237655,1767210656348,-151.0,0.00036978,31]
[400237656,1767210656357,-151.0,0.00036978,31]
[400237657,1767210656366,-151.0,0.00036978,31]
[400237658,1767210656375,-956.2,0.00036986,41]
[400237659,1767210656385,-6160.17770069,0.00036998,2]
[400237660,1767210656394,-187.78338598,0.00037,120]
[400237661,1767210656404,-726.0,0.00037002,11]
[400237662,1767210656413,-2500.0,0.00037004,30]
[400237663,1767210656423,-10002.46707623,0.00037004,120]
[400237664,1767210656432,-726.0,0.00037008,11]
[400237665,1767210656441,-726.0,0.00037008,11]
[400237666,1767210656451,-600.0,0.00037028,2]
[400237667,1767210656460,-1115.87726252,0.00037038,60]
[400237668,1767210656472,-362.75273748,0.00037038,60]
[400237669,1767210656481,-18.24726252,0.00037039,11]
[400237814,1767211636106,-555.20575369,0.00011889,2]
[400237815,1767211638086,-200.52588871,0.00011889,2]
[400237816,1767211651088,-184.40882708,0.00011889,2]
[400237824,1767211757071,-58.85953052,0.00011889,2]
[400237825,1767211757092,-183.60426823,0.00012288,2]
[400237826,1767211761136,-731.03,0.00012125,2]
[400237827,1767211761156,-49816.39573177,0.00012288,2]
[400237828,1767211761177,-500.0,0.00012288,2]
[400237829,1767211761196,-500.0,0.00012288,2]
[400237830,1767211761217,-500.0,0.00012288,2]
[400237831,1767211761236,-500.0,0.00012288,2]
[400237832,1767211761258,-500.0,0.00012288,2]
[400237833,1767211761279,-500.0,0.00012288,2]
[400237834,1767211761301,-500.0,0.00012288,2]
[400237835,1767211761322,-500.0,0.00012288,2]
[400237836,1767211761342,-500.0,0.00012288,2]
[400237837,1767211761360,-339.5114064,0.00012288,2]
[400237838,1767211761383,-500.0,0.00012288,2]
[400237839,1767211761404,-500.0,0.00012288,2]
[400237840,1767211761425,-500.0,0.00012288,2]
[400237841,1767211761446,-500.0,0.00012288,2]
[400237842,1767211761466,-345.46170395,0.00012288,2]
[400237843,1767211761487,-500.0,0.00012288,2]
[400237844,1767211761508,-500.0,0.00012288,2]
[400237845,1767211761529,-500.0,0.00012288,2]
[400237846,1767211761551,-480.05110038,0.00012288,2]
[400237847,1767211761572,-500.0,0.00012288,2]
[400237848,1767211761595,-642.10321105,0.00012288,2]
[400237849,1767211761614,-300.13849591,0.00012288,2]
[400237850,1767211761635,-500.0,0.00012288,2]
[400237851,1767211761656,-211.16110659,0.00012288,2]
[400237852,1767211761677,-642.10321105,0.00012288,2]
[400237853,1767211761697,-500.0,0.00012288,2]
[400237854,1767211761721,-500.0,0.00012288,2]
[400237855,1767211761741,-642.10321105,0.00012288,2]
[400237856,1767211761762,-500.0,0.00012288,2]
[400237857,1767211761783,-642.10321105,0.00012288,2]
[400237858,1767211761803,-500.0,0.00012288,2]
[400237859,1767211761823,-358.97411168,0.00012288,2]
[400237860,1767211761843,-500.0,0.00012288,2]
[400237861,1767211761863,-642.10321105,0.00012288,2]
[400237862,1767211761883,-500.0,0.00012288,2]
[400237863,1767211761903,-500.0,0.00012288,2]
[400237864,1767211761923,-642.10321105,0.00012288,2]
[400237865,1767211761943,-642.10321105,0.00012288,2]
[400237866,1767211761963,-642.10321105,0.00012288,2]
[400237867,1767211761983,-500.0,0.00012288,2]
[400237868,1767211762003,-642.10321105,0.00012288,2]
[400237869,1767211762024,-500.0,0.00012288,2]
[400237870,1767211762045,-642.10321105,0.00012288,2]
[400237871,1767211762064,-642.10321105,0.00012288,2]
[400237872,1767211762085,-642.10321105,0.00012288,2]
[400237873,1767211762106,-642.10321105,0.00012288,2]
[400237874,1767211762126,-500.0,0.00012288,2]
[400237875,1767211762146,-642.10321105,0.00012288,2]
[400237876,1767211762165,-642.10321105,0.00012288,2]
[400237877,1767211762185,-642.10321105,0.00012288,2]
[400237878,1767211762205,-642.10321105,0.00012288,2]
[400237879,1767211762224,-642.10321105,0.00012288,2]
[400237880,1767211762244,-642.10321105,0.00012288,2]
[400237881,1767211762263,-642.10321105,0.00012288,2]
[400237882,1767211762286,-642.10321105,0.00012288,2]
[400237883,1767211762306,-642.10321105,0.00012288,2]
[400237884,1767211762326,-642.10321105,0.00012288,2]
[400237885,1767211762347,-642.10321105,0.00012288,2]
[400237886,1767211762367,-642.10321105,0.00012288,2]
[400237887,1767211762387,-642.10321105,0.00012288,2]
[400237888,1767211762409,-642.10321105,0.00012288,2]
[400237889,1767211762429,-642.10321105,0.00012288,2]
[400237890,1767211762450,-642.10321105,0.00012288,2]
[400237891,1767211762473,-500.0,0.00012288,2]
[400237892,1767211762495,-642.10321105,0.00012288,2]
[400237893,1767211762517,-642.10321105,0.00012288,2]
[400237894,1767211762541,-642.10321105,0.00012288,2]
[400237895,1767211762562,-642.10321105,0.00012288,2]
[400237896,1767211762584,-642.10321105,0.00012288,2]
[400237897,1767211762610,-642.10321105,0.00012288,2]
[400237898,1767211762631,-642.10321105,0.00012288,2]
[400237899,1767211762651,-642.10321105,0.00012288,2]
[400237900,1767211762671,-642.10321105,0.00012288,2]
[400237901,1767211762691,-642.10321105,0.00012288,2]
[400237902,1767211762712,-642.10321105,0.00012288,2]
[400237903,1767211762732,-642.10321105,0.00012288,2]
[400237904,1767211762751,-642.10321105,0.00012288,2]
[400237905,1767211762772,-642.10321105,0.00012288,2]
[400237906,1767211762907,-642.10321105,0.00012288,2]
[400237907,1767211762928,-642.10321105,0.00012288,2]
[400237908,1767211762949,-642.10321105,0.00012288,2]
[400237909,1767211762969,-642.10321105,0.00012288,2]
[400237910,1767211762989,-642.10321105,0.00012288,2]
[400237911,1767211763008,-642.10321105,0.00012288,2]
[400237912,1767211763028,-642.10321105,0.00012288,2]
[400237913,1767211763048,-642.10321105,0.00012288,2]
[400237914,1767211763067,-642.10321105,0.00012288,2]
[400237915,1767211763087,-500.0,0.00012288,2]
[400237916,1767211763107,-500.0,0.00012288,2]
[400237917,1767211763126,-500.0,0.00012288,2]
[400237918,1767211763146,-500.0,0.00012288,2]
[400237919,1767211763166,-500.0,0.00012288,2]
[400237920,1767211763185,-200.0,0.00012288,2]